[Event "Late-Titled-Tuesday-Blitz-September-12-2023"]
[Site "Chess.com"]
[Date "2023.09.12"]
[Round "7"]
[White "FuenfgegenWilly"]
[Black "Francisco_Ferrari"]
[Result "0-1"]
[WhiteElo "2371"]
[BlackElo "2241"]
[TimeControl "180+1"]
[EndTime "15:12:52 PDT"]
[Termination "Francisco_Ferrari won by checkmate"]

1. e4 {[%clk 0:02:57.8]} 1... g6 {[%clk 0:02:57.5]} 2. Nc3 {[%clk 0:02:57.9]}
2... Bg7 {[%clk 0:02:57.2]} 3. f4 {[%clk 0:02:58.8]} 3... d6 {[%clk 0:02:55]} 4.
Nf3 {[%clk 0:02:59.2]} 4... Nd7 {[%clk 0:02:49.4]} 5. d3 {[%clk 0:02:56.8]} 5...
e5 {[%clk 0:02:49.2]} 6. g3 {[%clk 0:02:57.7]} 6... Ne7 {[%clk 0:02:46.7]} 7.
Bg2 {[%clk 0:02:58]} 7... O-O {[%clk 0:02:47]} 8. O-O {[%clk 0:02:58.4]} 8... c6
{[%clk 0:02:47.3]} 9. h3 {[%clk 0:02:57]} 9... b5 {[%clk 0:02:46.8]} 10. g4
{[%clk 0:02:57]} 10... exf4 {[%clk 0:02:32.7]} 11. Bxf4 {[%clk 0:02:56]} 11...
Nc5 {[%clk 0:02:31.8]} 12. d4 {[%clk 0:02:49]} 12... Ne6 {[%clk 0:02:27.9]} 13.
Be3 {[%clk 0:02:49.5]} 13... Bb7 {[%clk 0:02:20.7]} 14. Ne2 {[%clk 0:02:44.9]}
14... f5 {[%clk 0:02:12.8]} 15. e5 {[%clk 0:02:32.9]} 15... Nd5 {[%clk
0:02:06.9]} 16. Bf2 {[%clk 0:02:29.9]} 16... fxg4 {[%clk 0:02:05.1]} 17. hxg4
{[%clk 0:02:30.2]} 17... Ndf4 {[%clk 0:02:05.3]} 18. Nxf4 {[%clk 0:02:15.9]}
18... Nxf4 {[%clk 0:02:06.2]} 19. Bh1 {[%clk 0:02:15.5]} 19... Qc8 {[%clk
0:01:58.3]} 20. Nh2 {[%clk 0:01:27.1]} 20... dxe5 {[%clk 0:01:50.8]} 21. Be3
{[%clk 0:01:19.1]} 21... Nd5 {[%clk 0:01:30.6]} 22. Rxf8+ {[%clk 0:01:10.9]}
22... Qxf8 {[%clk 0:01:31.5]} 23. Bxd5+ {[%clk 0:01:07.4]} 23... cxd5 {[%clk
0:01:32.1]} 24. dxe5 {[%clk 0:01:05.2]} 24... Bxe5 {[%clk 0:01:26.2]} 25. Bd4
{[%clk 0:01:04.2]} 25... Bd6 {[%clk 0:01:02]} 26. Qd3 {[%clk 0:00:59.7]} 26...
Qf4 {[%clk 0:00:56.1]} 27. Nf1 {[%clk 0:00:36.3]} 27... Qxg4+ {[%clk 0:00:53.8]}
28. Kh1 {[%clk 0:00:36.6]} 28... Rf8 {[%clk 0:00:50.4]} 29. Re1 {[%clk
0:00:31.7]} 29... Rf3 {[%clk 0:00:42]} 30. Re3 {[%clk 0:00:22.5]} 30... Qh3+
{[%clk 0:00:36.8]} 31. Kg1 {[%clk 0:00:20.6]} 31... Rxf1+ {[%clk 0:00:36.9]} 32.
Qxf1 {[%clk 0:00:20.3]} 32... Qh2# {[%clk 0:00:37.1]} 0-1

[Event "Late-Titled-Tuesday-Blitz-September-12-2023"]
[Site "Chess.com"]
[Date "2023.09.12"]
[Round "7"]
[White "Zampronha1971"]
[Black "DvaHrasta"]
[Result "0-1"]
[WhiteElo "2305"]
[BlackElo "2467"]
[TimeControl "180+1"]
[EndTime "15:12:53 PDT"]
[Termination "DvaHrasta won by resignation"]

1. e4 {[%clk 0:03:00.9]} 1... c6 {[%clk 0:02:59.4]} 2. d4 {[%clk 0:03:00.3]}
2... d5 {[%clk 0:02:59.5]} 3. e5 {[%clk 0:03:00.8]} 3... c5 {[%clk 0:02:59.4]}
4. Nf3 {[%clk 0:03:01.2]} 4... Nc6 {[%clk 0:02:58.7]} 5. c4 {[%clk 0:03:01.1]}
5... Bg4 {[%clk 0:02:56.1]} 6. cxd5 {[%clk 0:03:00.8]} 6... Bxf3 {[%clk
0:02:53.6]} 7. Qxf3 {[%clk 0:02:34.6]} 7... Nxd4 {[%clk 0:02:52.8]} 8. Qd1
{[%clk 0:02:26.5]} 8... e6 {[%clk 0:02:52.5]} 9. dxe6 {[%clk 0:02:18.8]} 9...
fxe6 {[%clk 0:02:46.1]} 10. Be3 {[%clk 0:02:17.7]} 10... Ne7 {[%clk 0:02:44.3]}
11. Bxd4 {[%clk 0:02:15.1]} 11... cxd4 {[%clk 0:02:41.8]} 12. Bb5+ {[%clk
0:02:15.6]} 12... Nc6 {[%clk 0:02:38.2]} 13. O-O {[%clk 0:02:13.4]} 13... Bc5
{[%clk 0:02:34.5]} 14. Qg4 {[%clk 0:02:07.3]} 14... O-O {[%clk 0:02:24.2]} 15.
Bxc6 {[%clk 0:02:00.1]} 15... bxc6 {[%clk 0:02:22.9]} 16. Qxe6+ {[%clk
0:02:00.7]} 16... Kh8 {[%clk 0:02:22.9]} 17. Qxc6 {[%clk 0:02:00.6]} 17... Rc8
{[%clk 0:02:21.9]} 18. Qe4 {[%clk 0:02:00.5]} 18... Qg5 {[%clk 0:02:13.1]} 19.
f4 {[%clk 0:01:36.7]} 19... Qg4 {[%clk 0:01:52.2]} 20. Nd2 {[%clk 0:01:22.6]}
20... Bb6 {[%clk 0:01:49.2]} 21. h3 {[%clk 0:01:16.3]} 21... Qh4 {[%clk
0:01:32.9]} 22. Nb3 {[%clk 0:01:03.1]} 22... g5 {[%clk 0:01:28.4]} 23. Nxd4
{[%clk 0:00:57.5]} 23... gxf4 {[%clk 0:01:15.6]} 24. Kh1 {[%clk 0:00:53.3]}
24... Rc4 {[%clk 0:01:06.7]} 25. Nf3 {[%clk 0:00:52.3]} 25... Rxe4 {[%clk
0:01:03.5]} 26. Nxh4 {[%clk 0:00:51.5]} 26... Rxe5 {[%clk 0:01:03.9]} 27. Nf3
{[%clk 0:00:38.3]} 27... Re2 {[%clk 0:01:01.9]} 28. Rfe1 {[%clk 0:00:31.1]}
28... Rxb2 {[%clk 0:01:00.1]} 29. a4 {[%clk 0:00:29.4]} 29... Rg8 {[%clk
0:00:57.7]} 30. a5 {[%clk 0:00:22.8]} 30... Be3 {[%clk 0:00:55.2]} 31. Nh4
{[%clk 0:00:18.7]} 31... Bf2 {[%clk 0:00:52.4]} 32. Reb1 {[%clk 0:00:17.4]}
32... Rxb1+ {[%clk 0:00:51.6]} 33. Rxb1 {[%clk 0:00:18.3]} 33... Bxh4 {[%clk
0:00:51.7]} 34. Rb7 {[%clk 0:00:18.1]} 34... Bf2 {[%clk 0:00:50.7]} 0-1

[Event "Late-Titled-Tuesday-Blitz-September-12-2023"]
[Site "Chess.com"]
[Date "2023.09.12"]
[Round "7"]
[White "Perecke"]
[Black "ilya2700"]
[Result "1-0"]
[WhiteElo "2506"]
[BlackElo "2295"]
[TimeControl "180+1"]
[EndTime "15:12:54 PDT"]
[Termination "Perecke won by resignation"]

1. e4 {[%clk 0:02:59.8]} 1... c5 {[%clk 0:02:57.8]} 2. Nf3 {[%clk 0:02:58.7]}
2... e6 {[%clk 0:02:58]} 3. d4 {[%clk 0:02:59.1]} 3... cxd4 {[%clk 0:02:58.9]}
4. Nxd4 {[%clk 0:03:00]} 4... Nc6 {[%clk 0:02:58.5]} 5. Nc3 {[%clk 0:02:59.9]}
5... Qc7 {[%clk 0:02:59]} 6. Be3 {[%clk 0:03:00.6]} 6... a6 {[%clk 0:02:59.4]}
7. g4 {[%clk 0:03:01.3]} 7... b5 {[%clk 0:02:57]} 8. Nxc6 {[%clk 0:03:01.1]}
8... Qxc6 {[%clk 0:02:57.9]} 9. Qd2 {[%clk 0:03:01.8]} 9... b4 {[%clk
0:02:46.4]} 10. Ne2 {[%clk 0:03:01.5]} 10... Qxe4 {[%clk 0:02:41]} 11. Rg1
{[%clk 0:03:00.5]} 11... Qc4 {[%clk 0:02:32]} 12. Ng3 {[%clk 0:02:58]} 12... Qc7
{[%clk 0:02:29.2]} 13. O-O-O {[%clk 0:02:57.3]} 13... d5 {[%clk 0:02:26.9]} 14.
f4 {[%clk 0:02:51.3]} 14... Bc5 {[%clk 0:02:20.3]} 15. Nh5 {[%clk 0:02:50]}
15... g6 {[%clk 0:02:17.4]} 16. Bd4 {[%clk 0:02:47.6]} 16... gxh5 {[%clk
0:02:11]} 17. gxh5 {[%clk 0:02:41.8]} 17... Bxd4 {[%clk 0:02:06.5]} 18. Qxd4
{[%clk 0:02:41.8]} 18... f6 {[%clk 0:02:07.1]} 19. Bh3 {[%clk 0:02:34.6]} 19...
Kf7 {[%clk 0:01:56.5]} 20. f5 {[%clk 0:02:29.5]} 20... Qe5 {[%clk 0:01:16.3]}
21. Qg4 {[%clk 0:02:18.1]} 21... Qe3+ {[%clk 0:01:09.1]} 22. Kb1 {[%clk
0:02:18]} 22... Qg5 {[%clk 0:01:09.6]} 23. fxe6+ {[%clk 0:02:17]} 23... Ke8
{[%clk 0:01:05.6]} 24. Qxb4 {[%clk 0:02:14.6]} 24... Qxh5 {[%clk 0:00:57.2]} 25.
Qa4+ {[%clk 0:02:07.7]} 25... Kf8 {[%clk 0:00:53.4]} 26. Qc6 {[%clk 0:01:55.1]}
26... Qxh3 {[%clk 0:00:41.3]} 27. Qd6+ {[%clk 0:01:33.4]} 27... Ke8 {[%clk
0:00:38.4]} 28. Qxd5 {[%clk 0:01:02.5]} 28... Qxe6 {[%clk 0:00:36]} 29. Rge1
{[%clk 0:00:58.1]} 29... Ne7 {[%clk 0:00:31.9]} 30. Rxe6 {[%clk 0:00:57.4]}
30... Bxe6 {[%clk 0:00:22.7]} 31. Qxa8+ {[%clk 0:00:57.5]} 31... Bc8 {[%clk
0:00:23.1]} 32. Re1 {[%clk 0:00:58.4]} 32... Kf7 {[%clk 0:00:22]} 33. Qe4 {[%clk
0:00:53.6]} 33... Nf5 {[%clk 0:00:19.2]} 34. Qc4+ {[%clk 0:00:52.9]} 34... Kg6
{[%clk 0:00:17.5]} 35. Rg1+ {[%clk 0:00:52.8]} 1-0

[Event "Late-Titled-Tuesday-Blitz-September-12-2023"]
[Site "Chess.com"]
[Date "2023.09.12"]
[Round "7"]
[White "Quattroporte300"]
[Black "Der_Honigdachs"]
[Result "0-1"]
[WhiteElo "2407"]
[BlackElo "2537"]
[TimeControl "180+1"]
[EndTime "15:12:56 PDT"]
[Termination "Der_Honigdachs won by resignation"]

1. e4 {[%clk 0:03:00.9]} 1... e5 {[%clk 0:02:54.7]} 2. Nf3 {[%clk 0:03:00.2]}
2... d5 {[%clk 0:02:55.3]} 3. Nxe5 {[%clk 0:02:58.8]} 3... Bd6 {[%clk
0:02:56.1]} 4. d4 {[%clk 0:02:56]} 4... dxe4 {[%clk 0:02:56.3]} 5. Bc4 {[%clk
0:02:47.8]} 5... Bxe5 {[%clk 0:02:55.7]} 6. dxe5 {[%clk 0:02:48]} 6... Qxd1+
{[%clk 0:02:53.6]} 7. Kxd1 {[%clk 0:02:48.9]} 7... Nc6 {[%clk 0:02:53.9]} 8. Bf4
{[%clk 0:02:44.5]} 8... Bg4+ {[%clk 0:02:46.4]} 9. Kc1 {[%clk 0:02:36]} 9...
Nge7 {[%clk 0:02:42.4]} 10. h3 {[%clk 0:02:30.2]} 10... Bf5 {[%clk 0:02:37.1]}
11. g4 {[%clk 0:02:26]} 11... Bg6 {[%clk 0:02:36.8]} 12. e6 {[%clk 0:02:23]}
12... fxe6 {[%clk 0:02:31.8]} 13. Bxe6 {[%clk 0:02:22.3]} 13... Rf8 {[%clk
0:02:25]} 14. Bg3 {[%clk 0:02:18.4]} 14... Nd4 {[%clk 0:02:19.5]} 15. Bc4 {[%clk
0:02:16.3]} 15... e3 {[%clk 0:02:14.6]} 16. Na3 {[%clk 0:02:02.4]} 16... exf2
{[%clk 0:01:59.2]} 17. Rf1 {[%clk 0:02:00.5]} 17... O-O-O {[%clk 0:01:55.3]} 18.
Rxf2 {[%clk 0:01:57.1]} 18... Nec6 {[%clk 0:01:47.4]} 19. c3 {[%clk 0:01:51.1]}
19... Nf3 {[%clk 0:01:41.5]} 20. Nc2 {[%clk 0:01:34.2]} 20... Nce5 {[%clk
0:01:37.7]} 21. Be2 {[%clk 0:01:23.4]} 21... Ng1 {[%clk 0:01:20.7]} 22. Nd4
{[%clk 0:00:56.8]} 22... Rxf2 {[%clk 0:01:04]} 23. Bxf2 {[%clk 0:00:51.4]} 23...
Nxe2+ {[%clk 0:01:03.8]} 24. Kd2 {[%clk 0:00:49]} 24... Nxd4 {[%clk 0:01:02.5]}
25. cxd4 {[%clk 0:00:48.9]} 25... Nc4+ {[%clk 0:01:00.6]} 26. Kc3 {[%clk
0:00:49.3]} 26... Nd6 {[%clk 0:01:00.5]} 27. Bh4 {[%clk 0:00:47.1]} 27... Rf8
{[%clk 0:00:59.9]} 28. Re1 {[%clk 0:00:46.6]} 28... Ne4+ {[%clk 0:00:58.4]} 29.
Kb4 {[%clk 0:00:45]} 29... Rf3 {[%clk 0:00:58.6]} 30. d5 {[%clk 0:00:37.3]}
30... Rxh3 {[%clk 0:00:56.5]} 31. Be7 {[%clk 0:00:37.6]} 31... Kd7 {[%clk
0:00:56.1]} 32. Bf8 {[%clk 0:00:34.4]} 32... Rg3 {[%clk 0:00:52.5]} 33. Bxg7
{[%clk 0:00:32.7]} 33... Rxg4 {[%clk 0:00:52.8]} 34. Ka3 {[%clk 0:00:32.8]}
34... Nd6 {[%clk 0:00:47.5]} 35. b3 {[%clk 0:00:30.7]} 35... Nb5+ {[%clk
0:00:46.1]} 36. Kb2 {[%clk 0:00:30.7]} 36... Rg2+ {[%clk 0:00:45.9]} 0-1

[Event "Late-Titled-Tuesday-Blitz-September-12-2023"]
[Site "Chess.com"]
[Date "2023.09.12"]
[Round "7"]
[White "kleinebeer98"]
[Black "AlexOstrovskiy"]
[Result "1/2-1/2"]
[WhiteElo "2815"]
[BlackElo "2661"]
[TimeControl "180+1"]
[EndTime "15:12:58 PDT"]
[Termination "Game drawn - insufficient material"]

1. e4 {[%clk 0:03:00.9]} 1... c5 {[%clk 0:02:59]} 2. Nf3 {[%clk 0:03:01.1]} 2...
d6 {[%clk 0:02:59]} 3. d4 {[%clk 0:03:01.7]} 3... cxd4 {[%clk 0:02:59.9]} 4.
Nxd4 {[%clk 0:03:02.5]} 4... Nf6 {[%clk 0:02:58.3]} 5. Nc3 {[%clk 0:03:03]} 5...
g6 {[%clk 0:02:58.5]} 6. h3 {[%clk 0:03:02.8]} 6... Bg7 {[%clk 0:02:55.7]} 7.
Bc4 {[%clk 0:03:03.2]} 7... O-O {[%clk 0:02:56]} 8. O-O {[%clk 0:03:03.2]} 8...
Nc6 {[%clk 0:02:55.2]} 9. Nf3 {[%clk 0:03:03.9]} 9... Bd7 {[%clk 0:02:54.8]} 10.
Qe2 {[%clk 0:03:04.3]} 10... Rc8 {[%clk 0:02:54.8]} 11. Bg5 {[%clk 0:03:05]}
11... a6 {[%clk 0:02:52.7]} 12. Rad1 {[%clk 0:03:05.1]} 12... Na5 {[%clk
0:02:47.8]} 13. Bb3 {[%clk 0:03:04]} 13... Nxb3 {[%clk 0:02:42.8]} 14. cxb3
{[%clk 0:03:04.9]} 14... h6 {[%clk 0:02:21.1]} 15. Bxf6 {[%clk 0:03:00.7]} 15...
Bxf6 {[%clk 0:02:18.8]} 16. e5 {[%clk 0:03:01.4]} 16... Bg7 {[%clk 0:02:01.1]}
17. exd6 {[%clk 0:02:58.3]} 17... exd6 {[%clk 0:02:00.6]} 18. Rxd6 {[%clk
0:02:59.2]} 18... Qc7 {[%clk 0:01:57]} 19. Rfd1 {[%clk 0:02:57.2]} 19... Bc6
{[%clk 0:01:43]} 20. Nd5 {[%clk 0:02:57.6]} 20... Bxd5 {[%clk 0:01:34.3]} 21.
R6xd5 {[%clk 0:02:58.5]} 21... Rfe8 {[%clk 0:01:28.7]} 22. Qd2 {[%clk
0:02:40.8]} 22... Qc2 {[%clk 0:01:17.5]} 23. Qf4 {[%clk 0:02:38.2]} 23... Qxb2
{[%clk 0:00:58.8]} 24. Rd7 {[%clk 0:02:32.5]} 24... Rf8 {[%clk 0:00:59]} 25.
Rxb7 {[%clk 0:02:28.6]} 25... Qxa2 {[%clk 0:00:55.7]} 26. Rdd7 {[%clk
0:02:29.3]} 26... Qa1+ {[%clk 0:00:47.4]} 27. Kh2 {[%clk 0:02:29.4]} 27... Qf6
{[%clk 0:00:48.3]} 28. Qa4 {[%clk 0:02:25.2]} 28... Rc3 {[%clk 0:00:44]} 29. Qe4
{[%clk 0:02:18.4]} 29... Rc5 {[%clk 0:00:31.4]} 30. g4 {[%clk 0:02:14.5]} 30...
Rc3 {[%clk 0:00:25.2]} 31. Kg2 {[%clk 0:02:15.1]} 31... Rc6 {[%clk 0:00:11.7]}
32. Qd5 {[%clk 0:02:13.2]} 32... Rc2 {[%clk 0:00:10.6]} 33. b4 {[%clk
0:02:09.9]} 33... Rb2 {[%clk 0:00:10]} 34. Qc4 {[%clk 0:02:05.3]} 34... Rb1
{[%clk 0:00:07.5]} 35. Rbc7 {[%clk 0:01:56.4]} 35... Rb2 {[%clk 0:00:07.2]} 36.
Rc6 {[%clk 0:01:56.5]} 36... Rxb4 {[%clk 0:00:04.5]} 37. Qd5 {[%clk 0:01:52.3]}
37... Qb2 {[%clk 0:00:03.7]} 38. Rxg6 {[%clk 0:01:52.5]} 38... Rb5 {[%clk
0:00:03.2]} 39. Qc4 {[%clk 0:01:49.8]} 39... Rb4 {[%clk 0:00:03.6]} 40. Rxg7+
{[%clk 0:01:47]} 40... Kxg7 {[%clk 0:00:04.5]} 41. Qc6 {[%clk 0:01:45.2]} 41...
Qf6 {[%clk 0:00:04.3]} 42. Qc5 {[%clk 0:01:44.4]} 42... Rf4 {[%clk 0:00:04.5]}
43. Qe3 {[%clk 0:01:44.8]} 43... Rc8 {[%clk 0:00:02.6]} 44. Ne5 {[%clk
0:01:43.1]} 44... Rc2 {[%clk 0:00:02.9]} 45. Rxf7+ {[%clk 0:01:43.1]} 45... Qxf7
{[%clk 0:00:02.6]} 46. Nxf7 {[%clk 0:01:43.8]} 46... Rcxf2+ {[%clk 0:00:02.2]}
47. Kg3 {[%clk 0:01:39.2]} 47... R2f3+ {[%clk 0:00:02.5]} 48. Qxf3 {[%clk
0:01:39.5]} 48... Rxf3+ {[%clk 0:00:03.4]} 49. Kxf3 {[%clk 0:01:40.3]} 49...
Kxf7 {[%clk 0:00:04.3]} 50. h4 {[%clk 0:01:36.9]} 50... Kf6 {[%clk 0:00:04.8]}
51. Ke4 {[%clk 0:01:36.5]} 51... a5 {[%clk 0:00:05.1]} 52. Kd5 {[%clk 0:01:36]}
52... a4 {[%clk 0:00:05.1]} 53. g5+ {[%clk 0:01:36.6]} 53... hxg5 {[%clk
0:00:05.2]} 54. hxg5+ {[%clk 0:01:37.5]} 54... Kxg5 {[%clk 0:00:06]} 55. Kc4
{[%clk 0:01:38.4]} 55... Kf5 {[%clk 0:00:06]} 56. Kb4 {[%clk 0:01:38]} 56... Ke5
{[%clk 0:00:05.9]} 57. Ka3 {[%clk 0:01:38.9]} 57... Kd5 {[%clk 0:00:05.9]} 58.
Kxa4 {[%clk 0:01:39.8]} 1/2-1/2

[Event "Late-Titled-Tuesday-Blitz-September-12-2023"]
[Site "Chess.com"]
[Date "2023.09.12"]
[Round "7"]
[White "bazar-wokzal"]
[Black "enestnrvrd"]
[Result "1-0"]
[WhiteElo "2587"]
[BlackElo "2717"]
[TimeControl "180+1"]
[EndTime "15:13:02 PDT"]
[Termination "bazar-wokzal won by checkmate"]

1. e4 {[%clk 0:03:00.9]} 1... c5 {[%clk 0:02:59.7]} 2. c3 {[%clk 0:03:00.6]}
2... d6 {[%clk 0:03:00.5]} 3. d4 {[%clk 0:03:00.3]} 3... Nf6 {[%clk 0:03:01.2]}
4. Bd3 {[%clk 0:03:00.1]} 4... cxd4 {[%clk 0:03:00.8]} 5. cxd4 {[%clk
0:03:00.1]} 5... g6 {[%clk 0:03:01.2]} 6. Nc3 {[%clk 0:02:59.9]} 6... Bg7 {[%clk
0:03:01.8]} 7. f4 {[%clk 0:02:59.3]} 7... O-O {[%clk 0:03:01.9]} 8. Nf3 {[%clk
0:02:59.7]} 8... Nc6 {[%clk 0:03:02.1]} 9. O-O {[%clk 0:02:59.5]} 9... Bg4
{[%clk 0:03:02.7]} 10. Be3 {[%clk 0:02:57.9]} 10... Rc8 {[%clk 0:03:01.8]} 11.
Rc1 {[%clk 0:02:56.8]} 11... Nd7 {[%clk 0:02:57.6]} 12. d5 {[%clk 0:02:51.1]}
12... Nd4 {[%clk 0:02:56.8]} 13. Be2 {[%clk 0:02:34.6]} 13... Nxe2+ {[%clk
0:02:53.8]} 14. Qxe2 {[%clk 0:02:31.6]} 14... Qa5 {[%clk 0:02:54.3]} 15. h3
{[%clk 0:02:06.8]} 15... Bxf3 {[%clk 0:02:52.8]} 16. Rxf3 {[%clk 0:01:59.8]}
16... Nb6 {[%clk 0:02:50.2]} 17. Bxb6 {[%clk 0:01:41.7]} 17... Qxb6+ {[%clk
0:02:48.9]} 18. Kh2 {[%clk 0:01:41.7]} 18... Rc7 {[%clk 0:02:42.2]} 19. Na4
{[%clk 0:01:33.5]} 19... Qa5 {[%clk 0:02:34.8]} 20. b4 {[%clk 0:01:29.7]} 20...
Qxa4 {[%clk 0:02:06.5]} 21. Rxc7 {[%clk 0:01:29.6]} 21... Qxb4 {[%clk
0:02:07.2]} 22. Rxe7 {[%clk 0:01:28]} 22... Rc8 {[%clk 0:02:06.8]} 23. Rb3
{[%clk 0:01:25.3]} 23... Qd4 {[%clk 0:02:04.7]} 24. Rbxb7 {[%clk 0:01:23.9]}
24... Rc1 {[%clk 0:02:03.4]} 25. Rb8+ {[%clk 0:01:15.2]} 25... Bf8 {[%clk
0:02:02.3]} 26. Ree8 {[%clk 0:01:15.6]} 26... Qg1+ {[%clk 0:02:01.4]} 27. Kg3
{[%clk 0:01:15.9]} 27... Rc3+ {[%clk 0:02:02]} 28. Kh4 {[%clk 0:01:14.8]} 28...
Qc1 {[%clk 0:01:44.8]} 29. Rxf8+ {[%clk 0:01:13.7]} 29... Kg7 {[%clk 0:01:45]}
30. Rg8+ {[%clk 0:01:12.8]} 30... Kh6 {[%clk 0:01:44.6]} 31. Qg4 {[%clk
0:01:04.7]} 31... f6 {[%clk 0:01:38.2]} 32. Rb7 {[%clk 0:00:52.7]} 32... Qe1+
{[%clk 0:01:13.1]} 33. g3 {[%clk 0:00:51.9]} 33... Qxe4 {[%clk 0:01:08.2]} 34.
Rgg7 {[%clk 0:00:43.4]} 34... g5+ {[%clk 0:00:43.2]} 35. fxg5+ {[%clk
0:00:41.7]} 35... fxg5+ {[%clk 0:00:44.1]} 36. Rxg5 {[%clk 0:00:35.3]} 36... Qe8
{[%clk 0:00:33.3]} 37. Rh5+ {[%clk 0:00:31.7]} 37... Qxh5+ {[%clk 0:00:31.7]}
38. Qxh5# {[%clk 0:00:31.9]} 1-0

[Event "Late-Titled-Tuesday-Blitz-September-12-2023"]
[Site "Chess.com"]
[Date "2023.09.12"]
[Round "7"]
[White "kacprekt"]
[Black "Nekoo04"]
[Result "1-0"]
[WhiteElo "2506"]
[BlackElo "2286"]
[TimeControl "180+1"]
[EndTime "15:13:08 PDT"]
[Termination "kacprekt won by resignation"]

1. e4 {[%clk 0:03:00.9]} 1... c5 {[%clk 0:02:53.6]} 2. c3 {[%clk 0:03:01.1]}
2... d5 {[%clk 0:02:50.9]} 3. exd5 {[%clk 0:03:00.4]} 3... Qxd5 {[%clk
0:02:51.8]} 4. Nf3 {[%clk 0:03:00.9]} 4... Nf6 {[%clk 0:02:45.1]} 5. Na3 {[%clk
0:03:00.2]} 5... Nc6 {[%clk 0:02:38]} 6. d4 {[%clk 0:02:58.4]} 6... cxd4 {[%clk
0:02:31.1]} 7. Nb5 {[%clk 0:02:58.4]} 7... Qd8 {[%clk 0:02:31.7]} 8. Nbxd4
{[%clk 0:02:56.7]} 8... Bg4 {[%clk 0:02:22.9]} 9. Qa4 {[%clk 0:02:46.1]} 9...
Bd7 {[%clk 0:02:16.9]} 10. Bb5 {[%clk 0:02:42.5]} 10... Nxd4 {[%clk 0:02:15.5]}
11. Nxd4 {[%clk 0:02:33.8]} 11... a6 {[%clk 0:02:06.3]} 12. Bxd7+ {[%clk
0:02:33.4]} 12... Qxd7 {[%clk 0:02:06.5]} 13. Qxd7+ {[%clk 0:02:33.4]} 13...
Nxd7 {[%clk 0:02:04.9]} 14. Be3 {[%clk 0:02:33.7]} 14... e5 {[%clk 0:02:04.9]}
15. Nb3 {[%clk 0:02:34]} 15... O-O-O {[%clk 0:02:00.8]} 16. Ke2 {[%clk
0:02:32.9]} 16... f5 {[%clk 0:01:57.3]} 17. Rad1 {[%clk 0:02:27.8]} 17... Be7
{[%clk 0:01:38.8]} 18. f4 {[%clk 0:02:23.8]} 18... exf4 {[%clk 0:01:34.6]} 19.
Bxf4 {[%clk 0:02:24.7]} 19... Rhe8 {[%clk 0:01:35]} 20. Kf3 {[%clk 0:02:23.7]}
20... Nf6 {[%clk 0:01:33.9]} 21. Rxd8+ {[%clk 0:02:20.8]} 21... Bxd8 {[%clk
0:01:30.5]} 22. Nd4 {[%clk 0:02:20.3]} 22... Nd5 {[%clk 0:01:11.9]} 23. Bd2
{[%clk 0:02:14]} 23... g6 {[%clk 0:01:03.2]} 24. Re1 {[%clk 0:02:12.1]} 24...
Rxe1 {[%clk 0:01:02]} 25. Bxe1 {[%clk 0:02:13]} 25... Bf6 {[%clk 0:01:02.3]} 26.
Ne6 {[%clk 0:02:09]} 26... Be7 {[%clk 0:00:51.8]} 27. c4 {[%clk 0:02:05.3]}
27... Nf6 {[%clk 0:00:45.5]} 28. Bh4 {[%clk 0:01:58.9]} 28... Kd7 {[%clk
0:00:39.8]} 29. Bxf6 {[%clk 0:01:57.2]} 29... Kxe6 {[%clk 0:00:34.1]} 30. Bxe7
{[%clk 0:01:56.7]} 30... Kxe7 {[%clk 0:00:35]} 31. b4 {[%clk 0:01:52.3]} 31...
g5 {[%clk 0:00:34.8]} 32. a4 {[%clk 0:01:51.3]} 32... Kd6 {[%clk 0:00:33.8]} 33.
Ke3 {[%clk 0:01:49]} 33... Ke5 {[%clk 0:00:32.5]} 34. g3 {[%clk 0:01:45.6]}
34... h5 {[%clk 0:00:31.3]} 35. b5 {[%clk 0:01:36.7]} 35... h4 {[%clk
0:00:21.3]} 36. gxh4 {[%clk 0:01:34.1]} 36... gxh4 {[%clk 0:00:22.2]} 37. bxa6
{[%clk 0:01:26.1]} 37... bxa6 {[%clk 0:00:22.1]} 38. Kd3 {[%clk 0:01:21.5]}
38... f4 {[%clk 0:00:20]} 39. a5 {[%clk 0:01:17]} 39... h3 {[%clk 0:00:19.2]}
40. Kc3 {[%clk 0:01:14.5]} 40... f3 {[%clk 0:00:17.8]} 41. Kd3 {[%clk
0:01:14.6]} 41... f2 {[%clk 0:00:14.6]} 42. Ke2 {[%clk 0:01:14.9]} 42... Kd4
{[%clk 0:00:14.9]} 43. Kxf2 {[%clk 0:01:15.4]} 43... Kxc4 {[%clk 0:00:15.6]} 44.
Kg3 {[%clk 0:01:16.1]} 44... Kb4 {[%clk 0:00:16.2]} 45. Kxh3 {[%clk 0:01:16.7]}
45... Kxa5 {[%clk 0:00:16.9]} 46. Kg4 {[%clk 0:01:16.9]} 46... Kb4 {[%clk
0:00:17.4]} 47. h4 {[%clk 0:01:17.5]} 47... a5 {[%clk 0:00:18.1]} 48. h5 {[%clk
0:01:18.2]} 48... a4 {[%clk 0:00:18.8]} 49. h6 {[%clk 0:01:18.9]} 49... a3
{[%clk 0:00:19.3]} 50. h7 {[%clk 0:01:19.6]} 50... Kb3 {[%clk 0:00:19.4]} 51.
h8=Q {[%clk 0:01:19.5]} 51... a2 {[%clk 0:00:18.5]} 52. Qa1 {[%clk 0:01:18.9]}
1-0